fUST/lending_fUST_20250601
["ID","MTS","AMOUNT","RATE_DAILY","PERIOD"]
[363510810,1748747441279,-430.0,0.0001726,2]
[363510813,1748747441288,-1666.05,0.0001726,2]
[363510816,1748747441300,-430.0,0.0001726,2]
[363510819,1748747441312,-430.0,0.0001726,2]
[363510822,1748747441323,-625.06,0.0001726,2]
[363510825,1748747441332,-151.0,0.0001726,2]
[363510828,1748747441342,-430.0,0.0001726,2]
[363510831,1748747441352,-216.60461102,0.0001726,2]
[363510834,1748747441363,-567.55,0.0001726,2]
[363510837,1748747441372,-438.58803234,0.0001726,2]
[363510840,1748747441382,-430.0,0.0001726,2]
[363510843,1748747441392,-430.0,0.0001726,2]
[363510846,1748747441402,-438.53618931,0.0001726,2]
[363510849,1748747441411,-430.0,0.0001726,2]
[363510852,1748747441421,-430.0,0.0001726,2]
[363510855,1748747441430,-430.0,0.0001726,2]
[363510858,1748747441440,-430.0,0.0001726,2]
[363510861,1748747441450,-476.66836829,0.0001726,2]
[363510864,1748747441460,-430.0,0.0001726,2]
[363510867,1748747441469,-430.0,0.0001726,2]
[363510868,1748747441479,-430.0,0.0001726,2]
[363510870,1748747441489,-430.0,0.0001726,2]
[363510872,1748747441499,-430.0,0.0001726,2]
[363510874,1748747441508,-430.0,0.0001726,2]
[363510875,1748747441517,-430.0,0.0001726,2]
[363510877,1748747441527,-430.0,0.0001726,2]
[363510879,1748747441536,-430.0,0.0001726,2]
[363510881,1748747441545,-430.0,0.0001726,2]
[363510883,1748747441555,-430.0,0.0001726,2]
[363510885,1748747441565,-811.89,0.0001726,2]
[363510887,1748747441575,-430.0,0.0001726,2]
[363510889,1748747441585,-438.23200574,0.0001726,2]
[363510891,1748747441593,-430.0,0.0001726,2]
[363510893,1748747441604,-643.72,0.0001726,2]
[363510895,1748747441613,-430.0,0.0001726,2]
[363510897,1748747441622,-208.59671348,0.0001726,2]
[363510899,1748747441631,-430.0,0.0001726,2]
[363510901,1748747441640,-430.0,0.0001726,2]
[363510903,1748747441649,-433.68728826,0.0001726,2]
[363510904,1748747441658,-430.0,0.0001726,2]
[363510906,1748747441667,-430.0,0.0001726,2]
[363510908,1748747441676,-437.48,0.0001726,2]
[363510910,1748747441685,-430.0,0.0001726,2]
[363510912,1748747441694,-430.0,0.0001726,2]
[363510914,1748747441703,-1067.65,0.0001726,2]
[363510916,1748747441712,-430.0,0.0001726,2]
[363510918,1748747441722,-430.0,0.0001726,2]
[363510920,1748747441731,-258.18052161,0.0001726,2]
[363510925,1748747441775,-171.81947839,0.0001726,2]
[363510927,1748747441785,-430.0,0.0001726,2]
[363510929,1748747441794,-490.04,0.0001726,2]
[363510931,1748747441804,-1104.46,0.0001726,2]
[363510933,1748747441813,-430.0,0.0001726,2]
[363510936,1748747441824,-453.3,0.0001726,2]
[363510938,1748747441834,-430.0,0.0001726,2]
[363510941,1748747441843,-430.0,0.0001726,2]
[363510944,1748747441854,-430.0,0.0001726,2]
[363510948,1748747441864,-430.0,0.0001726,2]
[363510951,1748747441875,-430.0,0.0001726,2]
[363510953,1748747441885,-363.69186214,0.0001726,2]
[363510958,1748747441898,-1099.59813786,0.0001726,2]
[363510961,1748747441908,-430.0,0.0001726,2]
[363510964,1748747441917,-534.72230835,0.0001726,2]
[363510967,1748747441927,-430.0,0.0001726,2]
[363510970,1748747441936,-430.0,0.0001726,2]
[363510972,1748747441946,-430.0,0.0001726,2]
[363510975,1748747441956,-430.0,0.0001726,2]
[363510978,1748747441965,-430.0,0.0001726,2]
[363510981,1748747441975,-151.0,0.0001726,2]
[363510984,1748747441984,-492.873358,0.00017289,2]
[363510987,1748747441994,-492.873358,0.00017289,2]
[363510990,1748747442004,-1180.20966576,0.00017452,2]
[363510992,1748747442014,-501.96633342,0.00017509,2]
[363510996,1748747442024,-1648.39889513,0.0001753,2]
[363510999,1748747442033,-430.0,0.00017534,2]
[363511001,1748747442043,-437.66,0.00017534,2]
[363511004,1748747442052,-430.0,0.00017534,2]
[363511007,1748747442061,-430.0,0.00017534,2]
[363511010,1748747442070,-430.0,0.00017534,2]
[363511013,1748747442083,-430.0,0.00017534,2]
[363511016,1748747442092,-430.0,0.00017534,2]
[363511019,1748747442102,-444.76230826,0.00017534,2]
[363511022,1748747442112,-453.78129913,0.00017534,2]
[363511025,1748747442122,-430.0,0.00017534,2]
[363511028,1748747442131,-151.939034,0.00017534,2]
[363511031,1748747442141,-430.0,0.00017534,2]
[363511034,1748747442150,-501.22490982,0.00017534,2]
[363511037,1748747442160,-430.0,0.00017534,2]
[363511040,1748747442169,-437.60808724,0.00017534,2]
[363511043,1748747442179,-582.21,0.00017534,2]
[363511046,1748747442188,-574.02,0.00017534,2]
[363511049,1748747442198,-1528.82,0.00017534,2]
[363511051,1748747442207,-430.0,0.00017534,2]
[363511054,1748747442216,-741.08,0.00017534,2]
[363511057,1748747442225,-430.0,0.00017534,2]
[363511060,1748747442234,-682.52,0.00017534,2]
[363511063,1748747442243,-430.0,0.00017534,2]
[363511066,1748747442252,-971.96,0.00017534,2]
[363511069,1748747442261,-430.0,0.00017534,2]
[363511071,1748747442271,-430.0,0.00017534,2]
[363511074,1748747442282,-430.0,0.00017534,2]
[363511077,1748747442292,-430.0,0.00017534,2]
[363511080,1748747442302,-430.0,0.00017534,2]
[363511082,1748747442314,-430.0,0.00017534,2]
[363511084,1748747442324,-430.0,0.00017534,2]
[363511085,1748747442334,-440.5226478,0.00017534,2]
[363511088,1748747442344,-430.0,0.00017534,2]
[363511090,1748747442354,-430.0,0.00017534,2]
[363511093,1748747442364,-1666.05,0.00017534,2]
[363511096,1748747442373,-430.0,0.00017534,2]
[363511099,1748747442382,-430.0,0.00017534,2]
[363511102,1748747442392,-625.06,0.00017534,2]
[363511105,1748747442402,-430.0,0.00017534,2]
[363511108,1748747442412,-567.55,0.00017534,2]
[363511111,1748747442422,-430.0,0.00017534,2]
[363511114,1748747442431,-430.0,0.00017534,2]
[363511117,1748747442442,-430.0,0.00017534,2]
[363511120,1748747442452,-430.0,0.00017534,2]
[363511123,1748747442462,-430.0,0.00017534,2]
[363511126,1748747442471,-430.0,0.00017534,2]
[363511128,1748747442481,-430.0,0.00017534,2]
[363511131,1748747442491,-430.0,0.00017534,2]
[363511134,1748747442501,-430.0,0.00017534,2]
[363511137,1748747442511,-430.0,0.00017534,2]
[363511140,1748747442521,-430.0,0.00017534,2]
[363511143,1748747442531,-430.0,0.00017534,2]
[363511147,1748747442541,-430.0,0.00017534,2]
[363511150,1748747442551,-450.14959396,0.00017534,2]
[363511153,1748747442559,-811.89,0.00017534,2]
[363511155,1748747442569,-430.0,0.00017534,2]
[363511158,1748747442579,-430.0,0.00017534,2]
[363511161,1748747442588,-643.72,0.00017534,2]
[363511164,1748747442599,-430.0,0.00017534,2]
[363511168,1748747442609,-430.0,0.00017534,2]
[363511170,1748747442619,-430.0,0.00017534,2]
[363511173,1748747442628,-430.0,0.00017534,2]
[363511177,1748747442638,-430.0,0.00017534,2]
[363511179,1748747442648,-437.48,0.00017534,2]
[363511182,1748747442657,-430.0,0.00017534,2]
[363511185,1748747442667,-484.85705169,0.00017534,2]
[363511188,1748747442676,-1067.65,0.00017534,2]
[363511190,1748747442685,-430.0,0.00017534,2]
[363511193,1748747442695,-430.0,0.00017534,2]
[363511195,1748747442705,-222.17522527,0.00017534,2]
[363511197,1748747442715,-490.04,0.00017534,2]
[363511199,1748747442724,-1104.46,0.00017534,2]
[363511201,1748747442734,-453.3,0.00017534,2]
[363511203,1748747442743,-430.0,0.00017534,2]
[363511205,1748747442752,-430.0,0.00017534,2]
[363511207,1748747442762,-430.0,0.00017534,2]
[363511209,1748747442772,-430.0,0.00017534,2]
[363511211,1748747442781,-1463.29,0.00017534,2]
[363511213,1748747442790,-430.0,0.00017534,2]
[363511215,1748747442800,-430.0,0.00017534,2]
[363511218,1748747442809,-430.0,0.00017534,2]
[363511220,1748747442818,-430.0,0.00017534,2]
[363511222,1748747442828,-569.5,0.00017534,2]
[363511224,1748747442837,-1593.56,0.00017635,2]
[363511226,1748747442846,-181.47293713,0.00017689,2]
[363511228,1748747442855,-1180.20966576,0.00017728,2]
[363511230,1748747442865,-500.0,0.00017734,2]
[363511232,1748747442874,-1000.0,0.00017769,2]
[363511234,1748747442883,-151.0,0.00017797,2]
[363511236,1748747442893,-1051.994293,0.00017797,2]
[363511238,1748747442902,-1051.994293,0.00017797,2]
[363511240,1748747442911,-165.937222,0.00017797,2]
[363511242,1748747442921,-165.937222,0.00017797,2]
[363511244,1748747442930,-159.04692,0.00017797,2]
[363511246,1748747442940,-159.04692,0.00017797,2]
[363511248,1748747442949,-508.569761,0.00017797,2]
[363511250,1748747442958,-1747.64,0.00017798,3]
[363511252,1748747442968,-873.82,0.00017798,3]
[363511254,1748747442978,-436.92,0.00017798,3]
[363511256,1748747442987,-941.58,0.00017798,3]
[363511258,1748747442997,-470.78,0.00017798,3]
[363511260,1748747443007,-151.0,0.00017808,2]
[363511262,1748747443016,-151.0,0.00017808,2]
[363511264,1748747443026,-151.0,0.00017808,2]
[363511266,1748747443035,-874.503187,0.00017808,2]
[363511268,1748747443045,-430.0,0.00017808,2]
[363511270,1748747443054,-874.503187,0.00017808,2]
[363511272,1748747443064,-163.452407,0.00017808,2]
[363511274,1748747443075,-163.452407,0.00017808,2]
[363511276,1748747443084,-484.05988203,0.00017808,2]
[363511278,1748747443093,-430.0,0.00017808,2]
[363511280,1748747443105,-430.0,0.00017808,2]
[363511282,1748747443115,-430.0,0.00017808,2]
[363511284,1748747443124,-151.0,0.00017808,2]
[363511286,1748747443134,-151.0,0.00017808,2]
[363511288,1748747443143,-151.0,0.00017808,2]
[363511290,1748747443153,-151.0,0.00017808,2]
[363511292,1748747443162,-430.0,0.00017808,2]
[363511294,1748747443172,-430.0,0.00017808,2]
[363511296,1748747443182,-582.21,0.00017808,2]
[363511298,1748747443191,-574.02,0.00017808,2]
[363511300,1748747443200,-1528.82,0.00017808,2]
[363511302,1748747443210,-741.08,0.00017808,2]
[363511304,1748747443220,-430.0,0.00017808,2]
[363511306,1748747443230,-682.52,0.00017808,2]
[363511308,1748747443239,-430.0,0.00017808,2]
[363511309,1748747443249,-971.96,0.00017808,2]
[363511311,1748747443258,-430.0,0.00017808,2]
[363511314,1748747443268,-430.0,0.00017808,2]
[363511315,1748747443278,-430.0,0.00017808,2]
[363511318,1748747443289,-430.0,0.00017808,2]
[363511321,1748747443299,-1666.05,0.00017808,2]
[363511324,1748747443312,-430.0,0.00017808,2]
[363511327,1748747443322,-625.06,0.00017808,2]
[363511330,1748747443333,-151.0,0.00017808,2]
[363511332,1748747443343,-430.0,0.00017808,2]
[363511334,1748747443354,-567.55,0.00017808,2]
[363511336,1748747443364,-430.0,0.00017808,2]
[363511338,1748747443374,-430.0,0.00017808,2]
[363511340,1748747443384,-430.0,0.00017808,2]
[363511342,1748747443394,-430.0,0.00017808,2]
[363511344,1748747443403,-430.0,0.00017808,2]
[363511346,1748747443413,-440.02131201,0.00017808,2]
[363511348,1748747443422,-430.0,0.00017808,2]
[363511350,1748747443432,-430.0,0.00017808,2]
[363511352,1748747443441,-430.0,0.00017808,2]
[363511354,1748747443450,-430.0,0.00017808,2]
[363511356,1748747443460,-452.01464146,0.00017808,2]
[363511358,1748747443469,-430.0,0.00017808,2]
[363511360,1748747443480,-444.83389082,0.00017808,2]
[363511362,1748747443489,-811.89,0.00017808,2]
[363511364,1748747443499,-430.0,0.00017808,2]
[363511366,1748747443509,-430.0,0.00017808,2]
[363511368,1748747443519,-643.72,0.00017808,2]
[363511370,1748747443528,-430.0,0.00017808,2]
[363511371,1748747443539,-430.0,0.00017808,2]
[363511373,1748747443548,-430.0,0.00017808,2]
[363511376,1748747443559,-430.0,0.00017808,2]
[363511378,1748747443568,-437.48,0.00017808,2]
[363511380,1748747443579,-430.0,0.00017808,2]
[363511382,1748747443589,-1067.65,0.00017808,2]
[363511384,1748747443598,-430.0,0.00017808,2]
[363511386,1748747443607,-490.04,0.00017808,2]
[363511388,1748747443617,-1104.46,0.00017808,2]
[363511390,1748747443627,-453.3,0.00017808,2]
[363511392,1748747443637,-430.0,0.00017808,2]
[363511404,1748747443746,-430.0,0.00017808,2]
[363511406,1748747443756,-430.0,0.00017808,2]
[363511408,1748747443766,-430.0,0.00017808,2]
[363511410,1748747443776,-1463.29,0.00017808,2]
[363511412,1748747443785,-461.612644,0.00017808,2]
[363511414,1748747443795,-430.0,0.00017808,2]
[363511416,1748747443804,-474.95509405,0.00017808,2]
[363511418,1748747443813,-461.612644,0.00017808,2]
[363511420,1748747443823,-430.0,0.00017808,2]
[363511422,1748747443833,-430.0,0.00017808,2]
[363511424,1748747443843,-619.22132541,0.00017907,2]
[363511426,1748747443852,-1180.20966576,0.00018003,2]
[363511428,1748747443861,-557.79706461,0.00018082,2]
[363511430,1748747443871,-151.0,0.00018082,2]
[363511432,1748747443881,-505.56491729,0.00018082,2]
[363511434,1748747443891,-151.0,0.00018082,2]
[363511436,1748747443900,-241.72829972,0.00018082,2]
[363511438,1748747443909,-202.521056,0.00018082,2]
[363511440,1748747443919,-202.521056,0.00018082,2]
[363511442,1748747443929,-188.283099,0.00018082,2]
[363511444,1748747443938,-188.283099,0.00018082,2]
[363511446,1748747443947,-447.52431249,0.00018082,2]
[363511448,1748747443957,-151.0,0.00018082,2]
[363511450,1748747443966,-151.0,0.00018082,2]
[363511452,1748747443976,-151.0,0.00018082,2]
[363511454,1748747443985,-448.76827934,0.00018082,2]
[363511456,1748747443994,-206.668588,0.00018082,2]
[363511458,1748747444004,-206.668588,0.00018082,2]
[363511461,1748747444014,-582.21,0.00018082,2]
[363511463,1748747444024,-574.02,0.00018082,2]
[363511465,1748747444034,-1528.82,0.00018082,2]
[363511467,1748747444044,-741.08,0.00018082,2]
[363511469,1748747444054,-430.0,0.00018082,2]
[363511471,1748747444064,-682.52,0.00018082,2]
[363511473,1748747444075,-430.0,0.00018082,2]
[363511475,1748747444084,-971.96,0.00018082,2]
[363511477,1748747444093,-430.0,0.00018082,2]
[363511479,1748747444103,-430.0,0.00018082,2]
[363511481,1748747444113,-430.0,0.00018082,2]
[363511483,1748747444123,-430.0,0.00018082,2]
[363511485,1748747444132,-1666.05,0.00018082,2]
[363511487,1748747444142,-625.06,0.00018082,2]
[363511488,1748747444151,-430.0,0.00018082,2]
[363511489,1748747444161,-430.0,0.00018082,2]
[363511490,1748747444172,-567.55,0.00018082,2]
[363511491,1748747444182,-430.0,0.00018082,2]
[363511492,1748747444192,-430.0,0.00018082,2]
[363511493,1748747444202,-430.0,0.00018082,2]
[363511494,1748747444212,-430.0,0.00018082,2]
[363511496,1748747444222,-430.0,0.00018082,2]
[363511498,1748747444232,-430.0,0.00018082,2]
[363511500,1748747444242,-430.0,0.00018082,2]
[363511502,1748747444251,-430.0,0.00018082,2]
[363511504,1748747444262,-811.89,0.00018082,2]
[363511507,1748747444272,-430.0,0.00018082,2]
[363511509,1748747444282,-643.72,0.00018082,2]
[363511511,1748747444292,-430.0,0.00018082,2]
[363511513,1748747444301,-1427.200572,0.00018082,2]
[363511515,1748747444312,-430.0,0.00018082,2]
[363511517,1748747444323,-1427.200572,0.00018082,2]
[363511518,1748747444332,-430.0,0.00018082,2]
[363511520,1748747444343,-549.19495757,0.00018082,2]
[363511522,1748747444353,-437.48,0.00018082,2]
[363511525,1748747444365,-430.0,0.00018082,2]
[363511527,1748747444374,-1067.65,0.00018082,2]
[363511529,1748747444384,-430.0,0.00018082,2]
[363511531,1748747444395,-490.04,0.00018082,2]
[363511533,1748747444405,-1104.46,0.00018082,2]
[363511535,1748747444415,-453.3,0.00018082,2]
[363511537,1748747444424,-430.0,0.00018082,2]
[363511539,1748747444433,-430.0,0.00018082,2]
[363511541,1748747444443,-430.0,0.00018082,2]
[363511543,1748747444452,-1463.29,0.00018082,2]
[363511545,1748747444462,-430.0,0.00018082,2]
[363511547,1748747444471,-430.0,0.00018082,2]
[363511549,1748747444482,-430.0,0.00018082,2]
[363511551,1748747444491,-151.0,0.00018107,2]
[363511553,1748747444501,-151.0,0.00018215,2]
[363511555,1748747444511,-151.0,0.00018215,2]
[363511557,1748747444521,-1180.20966576,0.00018279,2]
[363511559,1748747444530,-1010.46320827,0.00018316,2]
[363511562,1748747444540,-151.0,0.00018356,2]
[363511564,1748747444551,-151.0,0.00018356,2]
[363511566,1748747444560,-151.0,0.00018356,2]
[363511568,1748747444570,-151.0,0.00018356,2]
[363511570,1748747444580,-582.21,0.00018356,2]
[363511572,1748747444590,-574.02,0.00018356,2]
[363511574,1748747444599,-1528.82,0.00018356,2]
[363511576,1748747444608,-741.08,0.00018356,2]
[363511578,1748747444617,-430.0,0.00018356,2]
[363511580,1748747444626,-682.52,0.00018356,2]
[363511582,1748747444636,-430.0,0.00018356,2]
[363511583,1748747444646,-971.96,0.00018356,2]
[363511585,1748747444656,-492.873358,0.00018356,2]
[363511588,1748747444667,-430.0,0.00018356,2]
[363511590,1748747444676,-492.873358,0.00018356,2]
[363511592,1748747444686,-430.0,0.00018356,2]
[363511594,1748747444696,-430.0,0.00018356,2]
[363511596,1748747444706,-430.0,0.00018356,2]
[363511598,1748747444715,-1666.05,0.00018356,2]
[363511600,1748747444724,-625.06,0.00018356,2]
[363511602,1748747444734,-430.0,0.00018356,2]
[363511604,1748747444744,-430.0,0.00018356,2]
[363511606,1748747444754,-567.55,0.00018356,2]
[363511608,1748747444763,-430.0,0.00018356,2]
[363511610,1748747444773,-456.74942035,0.00018356,2]
[363511612,1748747444783,-430.0,0.00018356,2]
[363511614,1748747444793,-430.0,0.00018356,2]
[363511616,1748747444802,-430.0,0.00018356,2]
[363511618,1748747444812,-430.0,0.00018356,2]
[363511621,1748747444823,-430.0,0.00018356,2]
[363511623,1748747444832,-811.89,0.00018356,2]
[363511625,1748747444842,-430.0,0.00018356,2]
[363511627,1748747444851,-643.72,0.00018356,2]
[363511629,1748747444861,-430.0,0.00018356,2]
[363511631,1748747444870,-430.0,0.00018356,2]
[363511633,1748747444882,-430.0,0.00018356,2]
[363511635,1748747444892,-437.48,0.00018356,2]
[363511637,1748747444902,-430.0,0.00018356,2]
[363511639,1748747444912,-1067.65,0.00018356,2]
[363511641,1748747444921,-430.0,0.00018356,2]
[363511643,1748747444931,-490.04,0.00018356,2]
[363511645,1748747444940,-1104.46,0.00018356,2]
[363511647,1748747444949,-453.3,0.00018356,2]
[363511649,1748747444959,-430.0,0.00018356,2]
[363511651,1748747444968,-430.0,0.00018356,2]
[363511653,1748747444977,-264.0,0.00018356,2]
[363511655,1748747444986,-1463.29,0.00018356,2]
[363511657,1748747444995,-430.0,0.00018356,2]
[363511659,1748747445004,-430.0,0.00018356,2]
[363511661,1748747445014,-427.29959885,0.00018356,2]
[363511663,1748747445024,-2390.34,0.00018436,2]
[363511665,1748747445033,-212.80060342,0.00018449,2]
[363511667,1748747445043,-160.0,0.00018457,2]
[363511669,1748747445052,-423.51412927,0.00018457,2]
[363511671,1748747445061,-229.3709046,0.00018457,2]
[363511673,1748747445071,-160.0,0.00018457,2]
[363511675,1748747445081,-842.5625,0.00018457,2]
[363511677,1748747445091,-160.0,0.00018457,2]
[363511679,1748747445101,-160.0,0.00018458,2]
[363511682,1748747445112,-151.0,0.00018507,2]
[363511683,1748747445122,-500.0,0.00018507,2]
[363511685,1748747445132,-151.0,0.00018534,2]
[363511688,1748747445142,-500.0,0.00018534,2]
[363511690,1748747445153,-1180.20966576,0.00018555,2]
[363511692,1748747445162,-290.75440353,0.00018562,2]
[363511694,1748747445171,-500.0,0.00018562,2]
[363511696,1748747445181,-500.0,0.00018589,2]
[363511698,1748747445190,-151.0,0.00018623,2]
[363511700,1748747445200,-151.0,0.00018623,2]
[363511702,1748747445210,-582.21,0.0001863,2]
[363511704,1748747445220,-574.02,0.0001863,2]
[363511706,1748747445230,-1528.82,0.0001863,2]
[363511708,1748747445239,-741.08,0.0001863,2]
[363511710,1748747445249,-430.0,0.0001863,2]
[363511712,1748747445259,-682.52,0.0001863,2]
[363511714,1748747445268,-430.0,0.0001863,2]
[363511716,1748747445277,-971.96,0.0001863,2]
[363511718,1748747445287,-430.0,0.0001863,2]
[363511720,1748747445296,-430.0,0.0001863,2]
[363511722,1748747445307,-430.0,0.0001863,2]
[363511724,1748747445321,-430.0,0.0001863,2]
[363511726,1748747445337,-1666.05,0.0001863,2]
[363511728,1748747445346,-625.06,0.0001863,2]
[363511730,1748747445357,-430.0,0.0001863,2]
[363511732,1748747445367,-430.0,0.0001863,2]
[363511734,1748747445376,-567.55,0.0001863,2]
[363511736,1748747445387,-430.0,0.0001863,2]
[363511739,1748747445397,-451.64,0.0001863,2]
[363511741,1748747445408,-430.0,0.0001863,2]
[363511743,1748747445418,-430.0,0.0001863,2]
[363511745,1748747445426,-430.0,0.0001863,2]
[363511747,1748747445436,-395.07420991,0.0001863,2]
[363511749,1748747445446,-811.89,0.0001863,2]
[363511751,1748747445455,-643.72,0.0001863,2]
[363511753,1748747445466,-430.0,0.0001863,2]
[363511755,1748747445476,-430.0,0.0001863,2]
[363511757,1748747445487,-430.0,0.0001863,2]
[363511759,1748747445497,-430.0,0.0001863,2]
[363511761,1748747445507,-437.48,0.0001863,2]
[363511763,1748747445516,-1067.65,0.0001863,2]
[363511765,1748747445526,-430.0,0.0001863,2]
[363511767,1748747445536,-490.04,0.0001863,2]
[363511769,1748747445545,-1104.46,0.0001863,2]
[363511771,1748747445555,-453.3,0.0001863,2]
[363511773,1748747445565,-430.0,0.0001863,2]
[363511775,1748747445576,-430.0,0.0001863,2]
[363511777,1748747445586,-1463.29,0.0001863,2]
[363511779,1748747445596,-430.0,0.0001863,2]
[363511781,1748747445605,-430.0,0.0001863,2]
[363511784,1748747445615,-500.0,0.00018667,2]
[363511787,1748747445625,-587.0,0.00018667,2]
[363511789,1748747445634,-587.0,0.00018669,2]
[363511791,1748747445643,-153.0,0.00018712,2]
[363511792,1748747445653,-154.7610475,0.00018712,2]
[363511794,1748747445662,-153.0,0.00018712,2]
[363511798,1748747445673,-153.0,0.00018712,2]
[363511800,1748747445682,-153.0,0.00018712,2]
[363511802,1748747445691,-319.1604193,0.00018712,2]
[363511804,1748747445701,-153.0,0.00018712,2]
[363511806,1748747445711,-153.0,0.00018712,2]
[363511808,1748747445721,-1195.8619859,0.00018712,2]
[363511810,1748747445730,-153.0,0.00018712,2]
[363511812,1748747445740,-153.0,0.00018712,2]
[363511814,1748747445749,-153.0,0.00018712,2]
[363511816,1748747445759,-153.0,0.00018712,2]
[363511818,1748747445768,-1648.39889513,0.00018721,2]
[363511820,1748747445777,-1180.20966576,0.00018831,2]
[363511822,1748747445787,-2351.0,0.00018857,2]
[363511824,1748747445797,-1516.1698205,0.000189,2]
[363511826,1748747445806,-151.0,0.00018904,2]
[363511828,1748747445816,-1051.994293,0.00018904,2]
[363511830,1748747445828,-1051.994293,0.00018904,2]
[363511832,1748747445838,-582.21,0.00018904,2]
[363511834,1748747445848,-574.02,0.00018904,2]
[363511836,1748747445858,-1528.82,0.00018904,2]
[363511838,1748747445867,-741.08,0.00018904,2]
[363511840,1748747445877,-430.0,0.00018904,2]
[363511842,1748747445890,-165.937222,0.00018904,2]
[363511844,1748747445899,-165.937222,0.00018904,2]
[363511846,1748747445909,-682.52,0.00018904,2]
[363511848,1748747445918,-430.0,0.00018904,2]
[363511850,1748747445927,-971.96,0.00018904,2]
[363511853,1748747445938,-430.0,0.00018904,2]
[363511855,1748747445948,-430.0,0.00018904,2]
[363511857,1748747445957,-430.0,0.00018904,2]
[363511859,1748747445967,-430.0,0.00018904,2]
[363511861,1748747445976,-1666.05,0.00018904,2]
[363511863,1748747445986,-625.06,0.00018904,2]
[363511865,1748747445995,-430.0,0.00018904,2]
[363511867,1748747446006,-430.0,0.00018904,2]
[363511869,1748747446016,-567.55,0.00018904,2]
[363511871,1748747446025,-223.08,0.00018904,2]
[363511873,1748747446035,-430.0,0.00018904,2]
[363511875,1748747446044,-430.0,0.00018904,2]
[363511877,1748747446054,-430.0,0.00018904,2]
[363511879,1748747446063,-811.89,0.00018904,2]
[363511881,1748747446075,-643.72,0.00018904,2]
[363511883,1748747446085,-430.0,0.00018904,2]
[363511885,1748747446094,-430.0,0.00018904,2]
[363511898,1748747446199,-430.0,0.00018904,2]
[363511900,1748747446210,-437.48,0.00018904,2]
[363511902,1748747446219,-430.0,0.00018904,2]
[363511904,1748747446230,-1067.65,0.00018904,2]
[363511906,1748747446239,-430.0,0.00018904,2]
[363511908,1748747446248,-159.04692,0.00018904,2]
[363511910,1748747446257,-490.04,0.00018904,2]
[363511912,1748747446267,-159.04692,0.00018904,2]
[363511914,1748747446277,-1104.46,0.00018904,2]
[363511916,1748747446286,-453.3,0.00018904,2]
[363511918,1748747446295,-430.0,0.00018904,2]
[363511920,1748747446306,-430.0,0.00018904,2]
[363511922,1748747446318,-1463.29,0.00018904,2]
[363511924,1748747446329,-430.0,0.00018904,2]
[363511926,1748747446339,-430.0,0.00018904,2]
[363511928,1748747446350,-508.569761,0.00018904,2]
[363511930,1748747446359,-152.97156,0.00018919,2]
[363511932,1748747446369,-10000.0,0.00019,2]
[363511934,1748747446379,-619.22132541,0.00019106,2]
[363511936,1748747446389,-1180.20966576,0.00019107,2]